[Event "Titled Tuesday Blitz November 22 Late 2022"]
[White "Tomaszewski, Kacper"]
[Black "Doluhanova, Evgeniya"]
[WhiteFideId "1127373"]
[BlackFideId "14112035"]
[WhiteElo "2211"]
[BlackElo "2164"]
[Result "1-0"]
[Round "05"]
[TimeControl "180+1"]
[Date "2022.11.23"]
[WhiteClock "0:00:29"]
[BlackClock "0:00:14"]

1. e4 {[%clk 0:02:57]}  c5 {[%clk 0:02:58]} 2. Nf3 {[%clk 0:02:57]}  d6 {[%clk 0:02:58]} 3. c3 {[%clk 0:02:55]}  Nf6 {[%clk 0:02:57]} 4. g3 {[%clk 0:02:54]}  Nc6 {[%clk 0:02:55]} 5. d3 {[%clk 0:02:54]}  g6 {[%clk 0:02:55]} 6. Bg2 {[%clk 0:02:54]}  Bg7 {[%clk 0:02:55]} 7. O-O {[%clk 0:02:55]}  O-O {[%clk 0:02:55]} 8. Nbd2 {[%clk 0:02:53]}  Bd7 {[%clk 0:02:49]} 9. Re1 {[%clk 0:02:54]}  Ne8 {[%clk 0:02:48]} 10. a3 {[%clk 0:02:54]}  Nc7 {[%clk 0:02:49]} 11. Qc2 {[%clk 0:02:52]}  b5 {[%clk 0:02:48]} 12. Rb1 {[%clk 0:02:39]}  Rb8 {[%clk 0:02:46]} 13. b4 {[%clk 0:02:38]}  Ne6 {[%clk 0:02:42]} 14. Nb3 {[%clk 0:02:35]}  c4 {[%clk 0:02:38]} 15. dxc4 {[%clk 0:02:28]}  bxc4 {[%clk 0:02:32]} 16. Nbd2 {[%clk 0:02:28]}  Rc8 {[%clk 0:02:19]} 17. Nxc4 {[%clk 0:02:24]}  Nb8 {[%clk 0:02:17]} 18. Nfd2 {[%clk 0:02:18]}  Bb5 {[%clk 0:02:16]} 19. Bf1 {[%clk 0:02:17]}  Nd7 {[%clk 0:02:12]} 20. a4 {[%clk 0:02:15]}  Bxc4 {[%clk 0:02:10]} 21. Nxc4 {[%clk 0:02:16]}  Nb6 {[%clk 0:02:04]} 22. Nxb6 {[%clk 0:02:15]}  Rxc3 {[%clk 0:02:03]} 23. Qa2 {[%clk 0:02:02]}  Qxb6 {[%clk 0:02:03]} 24. Bb2 {[%clk 0:01:58]}  Rc2 {[%clk 0:02:02]} 25. Re2 {[%clk 0:01:47]}  Rxe2 {[%clk 0:01:42]} 26. Bxe2 {[%clk 0:01:48]}  Bxb2 {[%clk 0:01:40]} 27. Qxb2 {[%clk 0:01:44]}  Nd4 {[%clk 0:01:39]} 28. Bf1 {[%clk 0:01:40]}  Nf3+ {[%clk 0:01:21]} 29. Kg2 {[%clk 0:01:39]}  Ng5 {[%clk 0:01:21]} 30. Bd3 {[%clk 0:01:27]}  Rc8 {[%clk 0:01:19]} 31. h4 {[%clk 0:01:21]}  Ne6 {[%clk 0:01:19]} 32. a5 {[%clk 0:01:19]}  Qd4 {[%clk 0:01:18]} 33. Qxd4 {[%clk 0:01:19]}  Nxd4 {[%clk 0:01:18]} 34. b5 {[%clk 0:01:20]}  e5 {[%clk 0:01:13]} 35. b6 {[%clk 0:01:13]}  axb6 {[%clk 0:01:12]} 36. Rxb6 {[%clk 0:01:14]}  Rc7 {[%clk 0:00:52]} 37. Rxd6 {[%clk 0:01:09]}  Nc6 {[%clk 0:00:50]} 38. a6 {[%clk 0:01:05]}  Na7 {[%clk 0:00:50]} 39. Rb6 {[%clk 0:01:00]}  Kf8 {[%clk 0:00:50]} 40. Rb7 {[%clk 0:00:59]}  Rxb7 {[%clk 0:00:49]} 41. axb7 {[%clk 0:00:59]}  Nc6 {[%clk 0:00:49]} 42. Bb5 {[%clk 0:00:54]}  Nb8 {[%clk 0:00:49]} 43. f4 {[%clk 0:00:55]}  f6 {[%clk 0:00:46]} 44. Kf3 {[%clk 0:00:54]}  Ke7 {[%clk 0:00:45]} 45. Kg4 {[%clk 0:00:49]}  h6 {[%clk 0:00:40]} 46. h5 {[%clk 0:00:48]}  f5+ {[%clk 0:00:34]} 47. exf5 {[%clk 0:00:46]}  gxh5+ {[%clk 0:00:32]} 48. Kxh5 {[%clk 0:00:38]}  e4 {[%clk 0:00:31]} 49. Kg6 {[%clk 0:00:35]}  e3 {[%clk 0:00:30]} 50. Kg7 {[%clk 0:00:33]}  Kd6 {[%clk 0:00:15]} 51. f6 {[%clk 0:00:30]}  Kc7 {[%clk 0:00:14]} 52. f7 {[%clk 0:00:29]} 1-0


[Site "https://www.chess.com"]

[Event "Titled Tuesday Blitz November 22 Late 2022"]
[White "Torres Boch, Jose Francisco"]
[Black "Cannon, David"]
[WhiteFideId "2278383"]
[BlackFideId "3213110"]
[WhiteElo "2073"]
[BlackElo "2013"]
[Result "1-0"]
[Round "05"]
[TimeControl "180+1"]
[Date "2022.11.23"]
[WhiteClock "0:01:43"]
[BlackClock "0:00:32"]

1. e4 {[%clk 0:02:56]}  c5 {[%clk 0:02:59]} 2. Nf3 {[%clk 0:02:57]}  e6 {[%clk 0:03:00]} 3. d4 {[%clk 0:02:57]}  cxd4 {[%clk 0:03:01]} 4. Nxd4 {[%clk 0:02:57]}  Nf6 {[%clk 0:02:59]} 5. Nc3 {[%clk 0:02:58]}  d6 {[%clk 0:02:58]} 6. Be2 {[%clk 0:02:53]}  Be7 {[%clk 0:02:58]} 7. Be3 {[%clk 0:02:53]}  O-O {[%clk 0:02:54]} 8. g4 {[%clk 0:02:53]}  Nc6 {[%clk 0:02:52]} 9. g5 {[%clk 0:02:53]}  Nd7 {[%clk 0:02:52]} 10. h4 {[%clk 0:02:53]}  Re8 {[%clk 0:02:21]} 11. g6 {[%clk 0:02:51]}  hxg6 {[%clk 0:02:10]} 12. h5 {[%clk 0:02:51]}  g5 {[%clk 0:02:08]} 13. Nxc6 {[%clk 0:02:52]}  bxc6 {[%clk 0:02:07]} 14. Qd2 {[%clk 0:02:52]}  Ne5 {[%clk 0:02:02]} 15. f4 {[%clk 0:02:50]}  gxf4 {[%clk 0:01:59]} 16. Bxf4 {[%clk 0:02:51]}  Bf6 {[%clk 0:01:59]} 17. O-O-O {[%clk 0:02:48]}  d5 {[%clk 0:01:59]} 18. Rdg1 {[%clk 0:02:30]}  d4 {[%clk 0:01:15]} 19. Na4 {[%clk 0:02:29]}  Nd7 {[%clk 0:00:50]} 20. Bc4 {[%clk 0:01:57]}  Nb6 {[%clk 0:00:43]} 21. Nxb6 {[%clk 0:01:47]}  axb6 {[%clk 0:00:43]} 22. e5 {[%clk 0:01:48]}  Be7 {[%clk 0:00:43]} 23. Qg2 {[%clk 0:01:44]}  Bf8 {[%clk 0:00:40]} 24. Bg5 {[%clk 0:01:43]}  Qc7 {[%clk 0:00:32]} 25. Bf6 {[%clk 0:01:43]} 1-0


[Site "https://www.chess.com"]

[Event "Titled Tuesday Blitz November 22 Late 2022"]
[White "Trent, Lawrence"]
[Black "Bobkov, Vadim"]
[WhiteFideId "408638"]
[BlackFideId "34110876"]
[WhiteElo "2458"]
[BlackElo "2172"]
[Result "0-1"]
[Round "05"]
[TimeControl "180+1"]
[Date "2022.11.23"]
[WhiteClock "0:00:16"]
[BlackClock "0:00:10"]

1. Nc3 {[%clk 0:03:00]}  d5 {[%clk 0:02:55]} 2. d4 {[%clk 0:03:01]}  Nf6 {[%clk 0:02:54]} 3. Bf4 {[%clk 0:03:01]}  c5 {[%clk 0:02:53]} 4. e4 {[%clk 0:03:01]}  dxe4 {[%clk 0:02:39]} 5. dxc5 {[%clk 0:02:58]}  Qxd1+ {[%clk 0:02:31]} 6. Rxd1 {[%clk 0:02:58]}  a6 {[%clk 0:02:32]} 7. Na4 {[%clk 0:02:51]}  Nfd7 {[%clk 0:01:47]} 8. b4 {[%clk 0:02:32]}  Nc6 {[%clk 0:01:46]} 9. c3 {[%clk 0:02:31]}  e5 {[%clk 0:01:42]} 10. Be3 {[%clk 0:02:31]}  f5 {[%clk 0:01:42]} 11. Bc4 {[%clk 0:02:18]}  Rb8 {[%clk 0:01:26]} 12. Ne2 {[%clk 0:02:11]}  f4 {[%clk 0:01:23]} 13. Bc1 {[%clk 0:02:09]}  b5 {[%clk 0:01:14]} 14. Bd5 {[%clk 0:02:07]}  Ne7 {[%clk 0:01:08]} 15. Nb2 {[%clk 0:01:20]}  Nxd5 {[%clk 0:01:07]} 16. Rxd5 {[%clk 0:01:20]}  Bb7 {[%clk 0:01:07]} 17. Rd1 {[%clk 0:01:17]}  Nf6 {[%clk 0:01:08]} 18. O-O {[%clk 0:01:12]}  g5 {[%clk 0:01:06]} 19. c4 {[%clk 0:01:11]}  Bc6 {[%clk 0:00:49]} 20. Nc3 {[%clk 0:01:11]}  Kf7 {[%clk 0:00:39]} 21. cxb5 {[%clk 0:01:06]}  axb5 {[%clk 0:00:37]} 22. a4 {[%clk 0:01:01]}  bxa4 {[%clk 0:00:35]} 23. b5 {[%clk 0:01:01]}  Bxb5 {[%clk 0:00:33]} 24. Nxb5 {[%clk 0:01:00]}  Rxb5 {[%clk 0:00:34]} 25. Nxa4 {[%clk 0:01:01]}  Bxc5 {[%clk 0:00:33]} 26. Bb2 {[%clk 0:01:01]}  Ra8 {[%clk 0:00:28]} 27. Nxc5 {[%clk 0:00:59]}  Rxc5 {[%clk 0:00:29]} 28. Rd6 {[%clk 0:00:58]}  Ra2 {[%clk 0:00:26]} 29. Ba1 {[%clk 0:00:57]}  Ng4 {[%clk 0:00:18]} 30. Rd7+ {[%clk 0:00:49]}  Ke8 {[%clk 0:00:15]} 31. Rxh7 {[%clk 0:00:43]}  Nxf2 {[%clk 0:00:15]} 32. Rb1 {[%clk 0:00:43]}  Rc8 {[%clk 0:00:08]} 33. Bxe5 {[%clk 0:00:37]}  Nd3 {[%clk 0:00:08]} 34. Bf6 {[%clk 0:00:20]}  Rc1+ {[%clk 0:00:08]} 35. Rxc1 {[%clk 0:00:20]}  Nxc1 {[%clk 0:00:09]} 36. Bxg5 {[%clk 0:00:21]}  e3 {[%clk 0:00:10]} 37. Bxf4 {[%clk 0:00:17]}  Ne2+ {[%clk 0:00:10]} 38. Kf1 {[%clk 0:00:17]}  Nxf4 {[%clk 0:00:11]} 39. Ke1 {[%clk 0:00:16]}  Ra1# {[%clk 0:00:10]} 0-1


[Site "https://www.chess.com"]

[Event "Titled Tuesday Blitz November 22 Late 2022"]
[White "Urbina Perez, Juan Antonio"]
[Black "Clawitter, Craig"]
[WhiteFideId "2217368"]
[BlackFideId "2023105"]
[WhiteElo "2197"]
[BlackElo "2253"]
[Result "1-0"]
[Round "05"]
[TimeControl "180+1"]
[Date "2022.11.23"]
[WhiteClock "0:02:22"]
[BlackClock "0:01:13"]

1. e4 {[%clk 0:02:54]}  e6 {[%clk 0:02:59]} 2. Qe2 {[%clk 0:02:53]}  c5 {[%clk 0:02:58]} 3. Nf3 {[%clk 0:02:52]}  Nc6 {[%clk 0:02:59]} 4. c3 {[%clk 0:02:52]}  g6 {[%clk 0:02:58]} 5. g3 {[%clk 0:02:52]}  Bg7 {[%clk 0:02:58]} 6. Bg2 {[%clk 0:02:53]}  Nge7 {[%clk 0:02:57]} 7. O-O {[%clk 0:02:53]}  O-O {[%clk 0:02:57]} 8. d3 {[%clk 0:02:52]}  d6 {[%clk 0:02:47]} 9. Bg5 {[%clk 0:02:52]}  f6 {[%clk 0:02:43]} 10. Be3 {[%clk 0:02:51]}  e5 {[%clk 0:02:42]} 11. d4 {[%clk 0:02:51]}  cxd4 {[%clk 0:02:36]} 12. cxd4 {[%clk 0:02:52]}  h6 {[%clk 0:02:25]} 13. Nc3 {[%clk 0:02:49]}  f5 {[%clk 0:02:24]} 14. dxe5 {[%clk 0:02:46]}  dxe5 {[%clk 0:02:22]} 15. Rfd1 {[%clk 0:02:43]}  Qa5 {[%clk 0:01:56]} 16. a3 {[%clk 0:02:35]}  b6 {[%clk 0:01:40]} 17. b4 {[%clk 0:02:31]}  Ba6 {[%clk 0:01:30]} 18. bxa5 {[%clk 0:02:29]}  Bxe2 {[%clk 0:01:30]} 19. Nxe2 {[%clk 0:02:30]}  Nxa5 {[%clk 0:01:25]} 20. Rd7 {[%clk 0:02:26]}  Rf7 {[%clk 0:01:13]} 21. exf5 {[%clk 0:02:23]}  Nxf5 {[%clk 0:01:12]} 22. Rxf7 {[%clk 0:02:22]}  Kxf7 {[%clk 0:01:13]} 23. Nxe5+ {[%clk 0:02:22]} 1-0


[Site "https://www.chess.com"]

[Event "Titled Tuesday Blitz November 22 Late 2022"]
[White "Vargas, Mauricio"]
[Black "Mesa Cruz, Juan Carlos"]
[WhiteFideId "4404572"]
[BlackFideId "6423400"]
[WhiteElo "2025"]
[BlackElo "2059"]
[Result "0-1"]
[Round "05"]
[TimeControl "180+1"]
[Date "2022.11.23"]
[WhiteClock "0:01:10"]
[BlackClock "0:00:48"]

1. e4 {[%clk 0:02:56]}  c5 {[%clk 0:02:59]} 2. Nc3 {[%clk 0:02:52]}  Nc6 {[%clk 0:02:57]} 3. f4 {[%clk 0:02:53]}  g6 {[%clk 0:02:57]} 4. Nf3 {[%clk 0:02:54]}  Bg7 {[%clk 0:02:57]} 5. g3 {[%clk 0:02:54]}  e6 {[%clk 0:02:57]} 6. Bg2 {[%clk 0:02:54]}  Nge7 {[%clk 0:02:57]} 7. O-O {[%clk 0:02:54]}  O-O {[%clk 0:02:58]} 8. d3 {[%clk 0:02:54]}  d5 {[%clk 0:02:58]} 9. e5 {[%clk 0:02:54]}  f6 {[%clk 0:02:42]} 10. exf6 {[%clk 0:02:49]}  Bxf6 {[%clk 0:02:41]} 11. Re1 {[%clk 0:02:43]}  Nf5 {[%clk 0:02:40]} 12. Qe2 {[%clk 0:02:42]}  Nfd4 {[%clk 0:02:39]} 13. Qd1 {[%clk 0:02:38]}  Nxf3+ {[%clk 0:02:37]} 14. Bxf3 {[%clk 0:02:36]}  Bd7 {[%clk 0:02:31]} 15. Bg4 {[%clk 0:02:33]}  Nd4 {[%clk 0:02:29]} 16. Ne2 {[%clk 0:02:26]}  Qb6 {[%clk 0:02:26]} 17. c3 {[%clk 0:02:25]}  Nf5 {[%clk 0:02:19]} 18. Kg2 {[%clk 0:02:08]}  Rae8 {[%clk 0:02:03]} 19. Ng1 {[%clk 0:02:08]}  Bc6 {[%clk 0:01:44]} 20. Bf3 {[%clk 0:02:05]}  d4 {[%clk 0:01:38]} 21. c4 {[%clk 0:01:58]}  Ne3+ {[%clk 0:01:37]} 22. Bxe3 {[%clk 0:01:57]}  dxe3 {[%clk 0:01:37]} 23. Rxe3 {[%clk 0:01:51]}  Qxb2+ {[%clk 0:01:37]} 24. Re2 {[%clk 0:01:48]}  Qxa1 {[%clk 0:01:37]} 25. Qd2 {[%clk 0:01:39]}  Bd4 {[%clk 0:01:31]} 26. Re1 {[%clk 0:01:37]}  Qc3 {[%clk 0:01:30]} 27. Qe2 {[%clk 0:01:36]}  e5 {[%clk 0:01:21]} 28. fxe5 {[%clk 0:01:35]}  Rxe5 {[%clk 0:01:21]} 29. Be4 {[%clk 0:01:31]}  Bxg1 {[%clk 0:01:13]} 30. Kxg1 {[%clk 0:01:29]}  Bxe4 {[%clk 0:01:08]} 31. dxe4 {[%clk 0:01:29]}  Qf3 {[%clk 0:01:04]} 32. Qc2 {[%clk 0:01:25]}  Rfe8 {[%clk 0:01:00]} 33. Qd2 {[%clk 0:01:16]}  Rxe4 {[%clk 0:00:56]} 34. Qd5+ {[%clk 0:01:16]}  Kg7 {[%clk 0:00:49]} 35. Qd7+ {[%clk 0:01:14]}  R8e7 {[%clk 0:00:49]} 36. Qd5 {[%clk 0:01:10]}  Rxe1# {[%clk 0:00:48]} 0-1


[Site "https://www.chess.com"]

[Event "Titled Tuesday Blitz November 22 Late 2022"]
[White "Walentukiewicz, Michal"]
[Black "Machidon, Cristi"]
[WhiteFideId "1126903"]
[BlackFideId "13904590"]
[WhiteElo "2026"]
[BlackElo "2333"]
[Result "1-0"]
[Round "05"]
[TimeControl "180+1"]
[Date "2022.11.23"]
[WhiteClock "0:00:42"]
[BlackClock "0:00:09"]

1. g3 {[%clk 0:02:47]}  e5 {[%clk 0:02:58]} 2. Bg2 {[%clk 0:02:44]}  d5 {[%clk 0:02:58]} 3. c4 {[%clk 0:02:43]}  d4 {[%clk 0:02:58]} 4. d3 {[%clk 0:02:43]}  Ne7 {[%clk 0:02:57]} 5. Nf3 {[%clk 0:02:43]}  Nec6 {[%clk 0:02:55]} 6. O-O {[%clk 0:02:44]}  Be7 {[%clk 0:02:55]} 7. e3 {[%clk 0:02:44]}  O-O {[%clk 0:02:53]} 8. exd4 {[%clk 0:02:44]}  exd4 {[%clk 0:02:54]} 9. Na3 {[%clk 0:02:45]}  Re8 {[%clk 0:02:38]} 10. Nc2 {[%clk 0:02:45]}  a5 {[%clk 0:02:37]} 11. Rb1 {[%clk 0:02:45]}  Na6 {[%clk 0:02:37]} 12. a3 {[%clk 0:02:46]}  a4 {[%clk 0:02:30]} 13. b4 {[%clk 0:02:45]}  axb3 {[%clk 0:02:30]} 14. Rxb3 {[%clk 0:02:45]}  Nc5 {[%clk 0:02:30]} 15. Rb5 {[%clk 0:02:45]}  Na4 {[%clk 0:02:28]} 16. Bd2 {[%clk 0:02:38]}  Bf6 {[%clk 0:02:23]} 17. Re1 {[%clk 0:02:24]}  Rxe1+ {[%clk 0:02:16]} 18. Nfxe1 {[%clk 0:02:21]}  Nc3 {[%clk 0:02:15]} 19. Bxc3 {[%clk 0:02:20]}  dxc3 {[%clk 0:02:16]} 20. Rd5 {[%clk 0:02:19]}  Qe7 {[%clk 0:02:14]} 21. h4 {[%clk 0:02:01]}  Ne5 {[%clk 0:02:03]} 22. Qe2 {[%clk 0:01:47]}  c6 {[%clk 0:02:02]} 23. Rd4 {[%clk 0:01:44]}  Bf5 {[%clk 0:01:38]} 24. Rf4 {[%clk 0:01:39]}  Qd7 {[%clk 0:01:18]} 25. Be4 {[%clk 0:01:34]}  Bg4 {[%clk 0:01:12]} 26. Qe3 {[%clk 0:01:25]}  Ng6 {[%clk 0:01:09]} 27. Rxf6 {[%clk 0:01:20]}  gxf6 {[%clk 0:01:08]} 28. Qh6 {[%clk 0:01:08]}  f5 {[%clk 0:01:06]} 29. Bg2 {[%clk 0:01:07]}  f4 {[%clk 0:01:06]} 30. h5 {[%clk 0:01:07]}  fxg3 {[%clk 0:00:42]} 31. hxg6 {[%clk 0:01:03]}  gxf2+ {[%clk 0:00:41]} 32. Kxf2 {[%clk 0:01:03]}  Qf5+ {[%clk 0:00:40]} 33. Kg3 {[%clk 0:01:01]}  hxg6 {[%clk 0:00:36]} 34. Qf4 {[%clk 0:01:00]}  Qxf4+ {[%clk 0:00:32]} 35. Kxf4 {[%clk 0:01:01]}  Bf5 {[%clk 0:00:29]} 36. Be4 {[%clk 0:00:57]}  Bxe4 {[%clk 0:00:21]} 37. Kxe4 {[%clk 0:00:58]}  f5+ {[%clk 0:00:20]} 38. Kd4 {[%clk 0:00:58]}  Kf7 {[%clk 0:00:20]} 39. Kxc3 {[%clk 0:00:59]}  Kf6 {[%clk 0:00:20]} 40. Kd4 {[%clk 0:00:59]}  g5 {[%clk 0:00:20]} 41. Kc5 {[%clk 0:00:58]}  Re8 {[%clk 0:00:15]} 42. Kb6 {[%clk 0:00:57]}  Re7 {[%clk 0:00:16]} 43. d4 {[%clk 0:00:53]}  f4 {[%clk 0:00:13]} 44. d5 {[%clk 0:00:54]}  cxd5 {[%clk 0:00:14]} 45. cxd5 {[%clk 0:00:54]}  Rd7 {[%clk 0:00:12]} 46. Kc5 {[%clk 0:00:51]}  g4 {[%clk 0:00:10]} 47. Kd4 {[%clk 0:00:51]}  Kf5 {[%clk 0:00:10]} 48. Nd3 {[%clk 0:00:43]}  g3 {[%clk 0:00:09]} 49. Nce1 {[%clk 0:00:43]}  Kg4 {[%clk 0:00:08]} 50. Ne5+ {[%clk 0:00:43]}  Kh3 {[%clk 0:00:08]} 51. Nxd7 {[%clk 0:00:43]}  g2 {[%clk 0:00:09]} 52. Nxg2 {[%clk 0:00:42]}  Kxg2 {[%clk 0:00:09]} 53. Ne5 {[%clk 0:00:42]} 1-0


[Site "https://www.chess.com"]

[Event "Titled Tuesday Blitz November 22 Late 2022"]
[White "Wirig, Anthony"]
[Black "Zhu, Jiner"]
[WhiteFideId "615013"]
[BlackFideId "8608059"]
[WhiteElo "2487"]
[BlackElo "2384"]
[Result "1/2-1/2"]
[Round "05"]
[TimeControl "180+1"]
[Date "2022.11.22"]
[WhiteClock "0:00:16"]
[BlackClock "0:00:27"]

1. d4 {[%clk 0:03:00]}  Nf6 {[%clk 0:02:59]} 2. Bg5 {[%clk 0:02:58]}  c5 {[%clk 0:02:58]} 3. Bxf6 {[%clk 0:02:58]}  gxf6 {[%clk 0:02:55]} 4. d5 {[%clk 0:02:58]}  Qb6 {[%clk 0:02:55]} 5. Qc1 {[%clk 0:02:56]}  d6 {[%clk 0:02:52]} 6. c4 {[%clk 0:02:55]}  f5 {[%clk 0:02:51]} 7. Nc3 {[%clk 0:02:53]}  Bg7 {[%clk 0:02:48]} 8. e3 {[%clk 0:02:51]}  Nd7 {[%clk 0:02:47]} 9. Qd2 {[%clk 0:02:40]}  Ne5 {[%clk 0:02:43]} 10. Rc1 {[%clk 0:02:38]}  Bd7 {[%clk 0:02:41]} 11. Nh3 {[%clk 0:02:29]}  O-O-O {[%clk 0:02:29]} 12. Be2 {[%clk 0:02:25]}  h5 {[%clk 0:02:29]} 13. Ng5 {[%clk 0:02:12]}  Bf6 {[%clk 0:02:20]} 14. h4 {[%clk 0:02:04]}  Rdf8 {[%clk 0:02:07]} 15. g3 {[%clk 0:01:58]}  Ng4 {[%clk 0:02:05]} 16. Nh3 {[%clk 0:01:54]}  Rfg8 {[%clk 0:01:38]} 17. Nf4 {[%clk 0:01:52]}  Kb8 {[%clk 0:01:32]} 18. Bd3 {[%clk 0:01:42]}  e5 {[%clk 0:01:27]} 19. Nh3 {[%clk 0:01:28]}  Qd8 {[%clk 0:01:19]} 20. Kd1 {[%clk 0:01:09]}  a6 {[%clk 0:01:17]} 21. Kc2 {[%clk 0:01:06]}  e4 {[%clk 0:01:11]} 22. Be2 {[%clk 0:01:04]}  Ka8 {[%clk 0:01:10]} 23. Kb1 {[%clk 0:01:03]}  Qe7 {[%clk 0:01:10]} 24. Rhf1 {[%clk 0:00:40]}  Rb8 {[%clk 0:01:05]} 25. Nf4 {[%clk 0:00:39]}  Be5 {[%clk 0:01:03]} 26. a4 {[%clk 0:00:28]}  b6 {[%clk 0:01:00]} 27. Kc2 {[%clk 0:00:27]}  Ka7 {[%clk 0:00:57]} 28. Ra1 {[%clk 0:00:27]}  Bxf4 {[%clk 0:00:50]} 29. Bxg4 {[%clk 0:00:20]}  fxg4 {[%clk 0:00:31]} 30. exf4 {[%clk 0:00:18]}  f5 {[%clk 0:00:31]} 31. Nd1 {[%clk 0:00:17]}  Qf6 {[%clk 0:00:30]} 32. Ne3 {[%clk 0:00:16]}  Rhc8 {[%clk 0:00:28]} 33. Qc3 {[%clk 0:00:15]}  Qxc3+ {[%clk 0:00:27]} 34. Kxc3 {[%clk 0:00:16]}  Kb7 {[%clk 0:00:27]} 35. b3 {[%clk 0:00:13]}  Kc7 {[%clk 0:00:27]} 36. Ra2 {[%clk 0:00:14]}  a5 {[%clk 0:00:19]} 37. Rc1 {[%clk 0:00:14]}  Rf8 {[%clk 0:00:20]} 38. Kd2 {[%clk 0:00:14]}  Rf7 {[%clk 0:00:20]} 39. Rac2 {[%clk 0:00:15]}  Rbf8 {[%clk 0:00:20]} 40. Re1 {[%clk 0:00:15]}  Kd8 {[%clk 0:00:20]} 41. Rcc1 {[%clk 0:00:16]}  Ke7 {[%clk 0:00:20]} 42. Rb1 {[%clk 0:00:17]}  Kf6 {[%clk 0:00:20]} 43. Nd1 {[%clk 0:00:18]}  Kg6 {[%clk 0:00:20]} 44. Nc3 {[%clk 0:00:19]}  Re7 {[%clk 0:00:20]} 45. Ke3 {[%clk 0:00:19]}  Rfe8 {[%clk 0:00:21]} 46. Rb2 {[%clk 0:00:20]}  Rf7 {[%clk 0:00:21]} 47. Reb1 {[%clk 0:00:21]}  Rfe7 {[%clk 0:00:21]} 48. Rd1 {[%clk 0:00:22]}  Rf7 {[%clk 0:00:21]} 49. Rc1 {[%clk 0:00:19]}  Rfe7 {[%clk 0:00:22]} 50. Rd2 {[%clk 0:00:19]}  Rf7 {[%clk 0:00:22]} 51. Nd1 {[%clk 0:00:19]}  Rfe7 {[%clk 0:00:22]} 52. Rc3 {[%clk 0:00:19]}  Rf7 {[%clk 0:00:22]} 53. Ke2 {[%clk 0:00:20]}  Rfe7 {[%clk 0:00:22]} 54. Ne3 {[%clk 0:00:21]}  Rf7 {[%clk 0:00:23]} 55. Kd1 {[%clk 0:00:21]}  Rfe7 {[%clk 0:00:23]} 56. Kc2 {[%clk 0:00:22]}  Rf7 {[%clk 0:00:24]} 57. Kb2 {[%clk 0:00:22]}  Rfe7 {[%clk 0:00:24]} 58. Kc1 {[%clk 0:00:23]}  Rf7 {[%clk 0:00:25]} 59. Kd1 {[%clk 0:00:23]}  Rfe7 {[%clk 0:00:25]} 60. Ke1 {[%clk 0:00:24]}  Rf7 {[%clk 0:00:26]} 61. Rc1 {[%clk 0:00:24]}  Rfe7 {[%clk 0:00:26]} 62. Ra1 {[%clk 0:00:24]}  Rf7 {[%clk 0:00:26]} 63. Rb2 {[%clk 0:00:24]}  Rfe7 {[%clk 0:00:27]} 64. Kd2 {[%clk 0:00:24]}  Rf7 {[%clk 0:00:27]} 65. Kc3 {[%clk 0:00:16]} 1/2-1/2


[Site "https://www.chess.com"]

[Event "Titled Tuesday Blitz November 22 Late 2022"]
[White "Wu, Rochelle"]
[Black "Sanchez, Robert"]
[WhiteFideId "30908132"]
[BlackFideId "2034360"]
[WhiteElo "2217"]
[BlackElo "2315"]
[Result "1-0"]
[Round "05"]
[TimeControl "180+1"]
[Date "2022.11.23"]
[WhiteClock "0:00:08"]
[BlackClock "0:00:10"]

1. e4 {[%clk 0:03:00]}  d5 {[%clk 0:02:57]} 2. exd5 {[%clk 0:03:00]}  Qxd5 {[%clk 0:02:57]} 3. Nc3 {[%clk 0:03:01]}  Qe6+ {[%clk 0:02:58]} 4. Be2 {[%clk 0:03:00]}  Qg6 {[%clk 0:02:58]} 5. Bf3 {[%clk 0:02:56]}  Nc6 {[%clk 0:02:58]} 6. d4 {[%clk 0:02:56]}  Bf5 {[%clk 0:02:58]} 7. Bxc6+ {[%clk 0:02:48]}  Qxc6 {[%clk 0:02:57]} 8. Nf3 {[%clk 0:02:43]}  O-O-O {[%clk 0:02:52]} 9. Be3 {[%clk 0:02:26]}  Nf6 {[%clk 0:02:46]} 10. O-O {[%clk 0:02:25]}  Kb8 {[%clk 0:02:20]} 11. h3 {[%clk 0:02:20]}  h6 {[%clk 0:02:13]} 12. Qe2 {[%clk 0:02:16]}  g5 {[%clk 0:01:57]} 13. a4 {[%clk 0:02:06]}  Rg8 {[%clk 0:01:50]} 14. Rfd1 {[%clk 0:01:11]}  g4 {[%clk 0:01:39]} 15. Ne5 {[%clk 0:01:10]}  Qe8 {[%clk 0:01:25]} 16. h4 {[%clk 0:01:08]}  g3 {[%clk 0:01:15]} 17. d5 {[%clk 0:01:01]}  gxf2+ {[%clk 0:01:00]} 18. Qxf2 {[%clk 0:01:02]}  Ng4 {[%clk 0:00:49]} 19. Nxg4 {[%clk 0:01:00]}  Rxg4 {[%clk 0:00:46]} 20. Bxa7+ {[%clk 0:01:00]}  Ka8 {[%clk 0:00:45]} 21. Nb5 {[%clk 0:00:59]}  Qd7 {[%clk 0:00:43]} 22. Bb6 {[%clk 0:00:51]}  Be4 {[%clk 0:00:36]} 23. Nxc7+ {[%clk 0:00:23]}  Kb8 {[%clk 0:00:36]} 24. Rd2 {[%clk 0:00:10]}  Rxg2+ {[%clk 0:00:34]} 25. Qxg2 {[%clk 0:00:11]}  Bxg2 {[%clk 0:00:34]} 26. Rxg2 {[%clk 0:00:12]}  e6 {[%clk 0:00:23]} 27. dxe6 {[%clk 0:00:13]}  fxe6 {[%clk 0:00:23]} 28. Nb5 {[%clk 0:00:13]}  Rc8 {[%clk 0:00:20]} 29. Rf1 {[%clk 0:00:11]}  Qc6 {[%clk 0:00:18]} 30. Be3 {[%clk 0:00:07]}  Bc5 {[%clk 0:00:17]} 31. Bxc5 {[%clk 0:00:07]}  Qxc5+ {[%clk 0:00:18]} 32. Kh1 {[%clk 0:00:07]}  Qc6 {[%clk 0:00:16]} 33. Rf7 {[%clk 0:00:07]}  Rg8 {[%clk 0:00:14]} 34. Rf2 {[%clk 0:00:07]}  Qe4 {[%clk 0:00:11]} 35. Kg1 {[%clk 0:00:07]}  Rxg2+ {[%clk 0:00:11]} 36. Rxg2 {[%clk 0:00:08]}  b6 {[%clk 0:00:10]} 37. Rg8+ {[%clk 0:00:07]}  Kb7 {[%clk 0:00:10]} 38. Nd6+ {[%clk 0:00:08]} 1-0


[Site "https://www.chess.com"]